[Event "26th Abu Dhabi Master 2019"]
[Site "Abu Dhabi"]
[Date "2019.08.03"]
[Round "2.56"]
[White "Tabada, Jobannie C."]
[Black "Raja Rithvik R"]
[Result "1-0"]
[ECO "C77"]
[WhiteElo "2216"]
[BlackElo "2357"]
[Annotator "NA"]
[PlyCount "135"]
[EventDate "2019.08.02"]
[EventType "swiss"]
[EventCountry "UAE"]
[SourceTitle "playchess.com"]
[Source "ChessBase"]
[SourceQuality "1"]
[TimeControl "5400+30"]

1. e4 e5 2. Nf3 Nc6 3. Bb5 a6 4. Ba4 Nf6 5. d3 b5 6. Bb3 Bc5 7. O-O d6 8. c3 O-O 9. Be3 Bxe3 10. fxe3 Na5 11. Bc2 c5 12. Nbd2 Nc6 13. Qe1 Ne7 14. Nh4 Ng6 15. Nf5 Be6 16. a4 Qd7 17. h3 d5 18. Qf2 Bxf5 19. exf5 Ne7 20. g4 h6 21. Qg3 Rae8 22. Rf2 c4 23. dxc4 bxc4 24. g5 hxg5 25. Qxg5 Nh7 26. Qg3 f6 27. e4 Rd8 28. exd5 Nxd5 29. Nxc4 Nf4 30. h4 Qc6 31. b3 Kh8 32. Kh2 Rd7 33. Rg1 Rfd8 34. Re1 Qc5 35. Qe3 Qc7 36. Qb6 Qxb6 37. Nxb6 Rd2 38. Ref1 Ne2 39. Be4 Nxc3 40. Bg2 R2d4 41. Rc2 Rxh4+ 42. Kg3 Rb4 43. Rxc3 Rxb6 44. Bd5 Rbd6 45. Bc4 a5 46. Rh1 R6d7 47. Rc2 g5 48. fxg6 Rg7 49. Rxh7+ Rxh7 50. gxh7 Kxh7 51. Be6 Kg6 52. Rc5 Rd3+ 53. Kf2 Kg5 54. Rxa5 Kf4 55. Ke2 Rd6 56. Bc4 f5 57. Ra6 Rd7 58. Rf6 Rh7 59. Be6 Rh2+ 60. Kf1 e4 61. Rxf5+ Ke3 62. a5 Ra2 63. Bc4 Ra1+ 64. Kg2 Ra2+ 65. Kg3 Ra1 66. a6 Rg1+ 67. Kh2 Rg7 68. Rf7 1-0

[Event "26th Abu Dhabi Master 2019"]
[Site "Abu Dhabi"]
[Date "2019.08.03"]
[Round "2.57"]
[White "Kulkarni, Rakesh"]
[Black "Ajay Karthikeyan"]
[Result "1/2-1/2"]
[ECO "B22"]
[WhiteElo "2360"]
[BlackElo "2216"]
[Annotator "NA"]
[PlyCount "64"]
[EventDate "2019.08.02"]
[EventType "swiss"]
[EventCountry "UAE"]
[SourceTitle "playchess.com"]
[Source "ChessBase"]
[SourceQuality "1"]
[TimeControl "5400+30"]

1. e4 {[%emt 0:00:23]} c5 {[%emt 0:03:13]} 2. c3 {[%emt 0:01:48]} Nf6 {[%emt 0:00:14]} 3. e5 {[%emt 0:00:15]} Nd5 {[%emt 0:00:04]} 4. Nf3 {[%emt 0:00:37]} Nc6 {[%emt 0:00:18]} 5. d4 {[%emt 0:00:56]} cxd4 {[%emt 0:00:06]} 6. cxd4 {[%emt 0:00:05]} d6 {[%emt 0:00:15]} 7. Bc4 {[%emt 0:00:33]} dxe5 {[%emt 0:00:28]} 8. dxe5 {[%emt 0:00:37]} Ndb4 {[%emt 0:00:10]} 9. Qxd8+ {[%emt 0:00:19]} Nxd8 {[%emt 0:00:20]} 10. Na3 {[%emt 0:00:10]} Bg4 {[%emt 0:00:13]} 11. Nd4 {[%emt 0:03:07]} a6 {[%emt 0:00:33]} 12. h3 {[%emt 0:03:53]} Bd7 {[%emt 0:05:36]} 13. O-O {[%emt 0:02:14]} e6 {[%emt 0:00:21]} 14. Be2 {[%emt 0:04:13]} Ndc6 {[%emt 0:05:56]} 15. Nxc6 {[%emt 0:03:03]} Bxc6 {[%emt 0:01:36]} 16. Bd2 {[%emt 0:03:29]} Be7 {[%emt 0:09:36]} 17. Nc4 {[%emt 0:02:58]} O-O {[%emt 0:02:07]} 18. Rfd1 {[%emt 0:10:03]} Rfd8 {[%emt 0:05:09]} 19. Na5 {[%emt 0:12:43]} Be4 {[%emt 0:09:59]} 20. Bc3 {[%emt 0:16:17]} Rxd1+ {[%emt 0:04:26]} 21. Bxd1 {[%emt 0:02:15]} Rd8 {[%emt 0:03:43]} 22. Bb3 {[%emt 0:06:08]} Nd3 {[%emt 0:13:47]} 23. Rd1 {[%emt 0:03:14]} Nf4 {[%emt 0:00:40]} 24. f3 {[%emt 0:01:41]} Bc5+ {[%emt 0:06:00]} 25. Kh2 {[%emt 0:01:01]} Rxd1 {[%emt 0:00:10]} 26. Bxd1 {[%emt 0:00:19]} Bd5 {[%emt 0:01:17]} 27. b4 {[%emt 0:07:44]} Be3 {[%emt 0:03:35]} 28. Nb3 {[%emt 0:04:07]} Nd3 {[%emt 0:04:03]} 29. g3 {[%emt 0:00:24]} Bf2 {[%emt 0:09:36]} 30. a3 {[%emt 0:04:28]} Be1 {[%emt 0:06:13]} 31. Bxe1 {[%emt 0:00:50]} Nxe1 {[%emt 0:00:01]} 32. Nd4 {[%emt 0:00:49]} g5 {[%emt 0:01:38]} 1/2-1/2

[Event "26th Abu Dhabi Master 2019"]
[Site "Abu Dhabi"]
[Date "2019.08.03"]
[Round "2.58"]
[White "Pranav Anand"]
[Black "Eynullayev, Altay"]
[Result "0-1"]
[ECO "D97"]
[WhiteElo "2347"]
[BlackElo "2188"]
[Annotator "NA"]
[PlyCount "99"]
[EventDate "2019.08.02"]
[EventType "swiss"]
[EventCountry "UAE"]
[SourceTitle "playchess.com"]
[Source "ChessBase"]
[SourceQuality "1"]
[TimeControl "5400+30"]

1. d4 Nf6 2. c4 g6 3. Nc3 d5 4. Nf3 Bg7 5. Qb3 dxc4 6. Qxc4 O-O 7. e4 a6 8. Be2 b5 9. Qb3 Nc6 {[%emt 0:00:27]} 10. d5 {[%emt 0:14:48]} Na5 {[%emt 0:00:06]} 11. Qb4 {[%emt 0:03:45]} c6 {[%emt 0:00:06]} 12. Be3 {[%emt 0:02:37]} cxd5 {[%emt 0:10:55]} 13. exd5 {[%emt 0:00:23]} Bb7 {[%emt 0:02:43]} 14. Rd1 {[%emt 0:06:59]} Rc8 {[%emt 0:06:01]} 15. Bc5 {[%emt 0:19:24]} Nc4 {[%emt 0:21:25]} 16. Qa3 {[%emt 0:05:42]} Nd6 {[%emt 0:10:40]} 17. O-O {[%emt 0:00:30]} Re8 {[%emt 0:00:30]} 18. Bb4 {[%emt 0:08:12]} Nfe4 {[%emt 0:04:53]} 19. Ba5 {[%emt 0:11:54]} Qd7 {[%emt 0:00:20]} 20. Nxe4 {[%emt 0:01:50]} Nxe4 {[%emt 0:00:07]} 21. Qe3 {[%emt 0:09:54]} Nf6 {[%emt 0:04:35]} 22. Ne5 {[%emt 0:00:53]} Qd6 {[%emt 0:01:12]} 23. Qf4 {[%emt 0:04:31]} Rf8 {[%emt 0:05:44]} 24. Nd3 {[%emt 0:04:38]} Qxf4 {[%emt 0:02:55]} 25. Nxf4 {[%emt 0:00:07]} Bh6 {[%emt 0:06:37]} 26. Nd3 {[%emt 0:00:11]} Bxd5 {[%emt 0:01:35]} 27. Nb4 {[%emt 0:00:09]} Bb7 {[%emt 0:00:33]} 28. Ra1 {[%emt 0:03:30]} Nd7 {[%emt 0:04:40]} 29. a4 {[%emt 0:01:11]} bxa4 {[%emt 0:01:07]} 30. Rxa4 {[%emt 0:00:08]} Nc5 {[%emt 0:00:06]} 31. Ra2 {[%emt 0:00:47]} Bg7 {[%emt 0:09:53]} 32. Bb6 {[%emt 0:00:40]} Nd7 {[%emt 0:01:32]} 33. Be3 {[%emt 0:00:29]} Nb8 {[%emt 0:00:39]} 34. Nxa6 {[%emt 0:02:50]} Nxa6 {[%emt 0:01:04]} 35. Bxa6 {[%emt 0:00:02]} Bxa6 {[%emt 0:00:51]} 36. Rxa6 {[%emt 0:00:01]} Bxb2 {[%emt 0:00:01]} 37. g3 {[%emt 0:00:11]} Ra8 {[%emt 0:00:29]} 38. Rb6 {[%emt 0:00:24]} Bf6 {[%emt 0:00:59]} 39. h4 {[%emt 0:00:00]} Ra1 {[%emt 0:02:38]} 40. Kg2 {[%emt 0:00:00]} Rd8 {[%emt 0:00:30]} 41. Rxa1 {[%emt 0:00:17]} Bxa1 {[%emt 0:00:30]} 42. Kf1 {[%emt 0:00:30]} Rd7 {[%emt 0:00:30]} 43. Kg2 {[%emt 0:00:30]} f5 {[%emt 0:00:30]} 44. h5 {[%emt 0:00:30]} Bf6 {[%emt 0:01:28]} 45. hxg6 {[%emt 0:00:54]} hxg6 {[%emt 0:00:44]} 46. g4 {[%emt 0:00:18]} e5 {[%emt 0:00:38]} 47. gxf5 {[%emt 0:00:21]} gxf5 {[%emt 0:00:00]} 48. Bc1 {[%emt 0:00:09]} f4 {[%emt 0:00:00]} 49. f3 {[%emt 0:00:28]} Rd5 {[%emt 0:00:49]} 50. Bd2 {[%emt 0:00:00]} 0-1

[Event "26th Abu Dhabi Master 2019"]
[Site "Abu Dhabi"]
[Date "2019.08.03"]
[Round "2.59"]
[White "Priyanka, K."]
[Black "Moksh Amit Doshi"]
[Result "1/2-1/2"]
[ECO "C91"]
[WhiteElo "2201"]
[BlackElo "2229"]
[Annotator "NA"]
[PlyCount "80"]
[EventDate "2019.08.02"]
[EventType "swiss"]
[EventCountry "UAE"]
[SourceTitle "playchess.com"]
[Source "ChessBase"]
[SourceQuality "1"]
[TimeControl "5400+30"]

1. e4 e5 2. Nf3 Nc6 3. Bb5 a6 4. Ba4 Nf6 5. O-O Be7 6. Re1 b5 7. Bb3 d6 8. c3 O-O 9. d4 Bg4 10. d5 Na5 11. Bc2 Qc8 12. h3 Bh5 13. Nbd2 c6 14. dxc6 Qxc6 15. Nf1 Nc4 16. Ng3 Bg6 17. Nh4 Rfd8 18. Nhf5 Bf8 19. a4 d5 20. Qf3 d4 21. axb5 axb5 22. Rxa8 Qxa8 23. Rd1 Qa2 24. cxd4 Nxb2 25. Bb3 Qb1 26. Bxb2 Qxb2 27. dxe5 Rxd1+ 28. Qxd1 Qxe5 29. Qd4 Qe8 30. e5 Nd7 31. Nd6 Bxd6 32. exd6 h5 33. Nf1 Qe1 34. Qd5 Qb4 35. Qc6 Nf8 36. Bd5 h4 37. Qc7 Qf4 38. Qe7 Qb4 39. Qc7 Qf4 40. Qe7 Qb4 1/2-1/2

[Event "26th Abu Dhabi Master 2019"]
[Site "Abu Dhabi"]
[Date "2019.08.03"]
[Round "2.60"]
[White "Nandhidhaa, P V"]
[Black "Adnan, Habib"]
[Result "1-0"]
[ECO "C15"]
[WhiteElo "2259"]
[BlackElo "2197"]
[Annotator "NA"]
[PlyCount "93"]
[EventDate "2019.08.02"]
[EventType "swiss"]
[EventCountry "UAE"]
[SourceTitle "playchess.com"]
[Source "ChessBase"]
[SourceQuality "1"]
[TimeControl "5400+30"]

1. e4 {[%emt 0:00:00]} e6 {[%emt 0:00:00]} 2. d4 {[%emt 0:00:00]} d5 {[%emt 0:00:00]} 3. Nc3 {[%emt 0:00:00]} Bb4 {[%emt 0:00:00]} 4. exd5 {[%emt 0:00:00]} exd5 {[%emt 0:00:00]} 5. Bd3 {[%emt 0:00:00]} Nc6 {[%emt 0:00:26]} 6. Nf3 {[%emt 0:00:22]} Nge7 {[%emt 0:00:47]} 7. O-O {[%emt 0:01:05]} Bf5 {[%emt 0:03:31]} 8. Bxf5 {[%emt 0:02:43]} Nxf5 {[%emt 0:00:04]} 9. Qd3 {[%emt 0:00:16]} Qd7 {[%emt 0:07:35]} 10. Re1+ {[%emt 0:06:47]} Nfe7 {[%emt 0:00:16]} 11. a3 {[%emt 0:04:59]} Bxc3 {[%emt 0:03:19]} 12. Qxc3 {[%emt 0:00:26]} f6 {[%emt 0:00:07]} 13. Qb3 {[%emt 0:05:08]} b6 {[%emt 0:01:41]} 14. Qa4 {[%emt 0:01:41]} a6 {[%emt 0:02:28]} 15. Bd2 {[%emt 0:03:25]} b5 {[%emt 0:01:08]} 16. Qb3 {[%emt 0:00:21]} O-O {[%emt 0:00:12]} 17. a4 {[%emt 0:02:52]} Rfb8 {[%emt 0:16:18]} 18. axb5 {[%emt 0:00:15]} Rxb5 {[%emt 0:00:18]} 19. Qxb5 {[%emt 0:17:10]} axb5 {[%emt 0:00:05]} 20. Rxa8+ {[%emt 0:00:06]} Kf7 {[%emt 0:00:05]} 21. Bf4 {[%emt 0:00:59]} Qf5 {[%emt 0:16:16]} 22. Bxc7 {[%emt 0:02:58]} Qxc2 {[%emt 0:00:12]} 23. Bd6 {[%emt 0:07:45]} Nf5 {[%emt 0:10:37]} 24. Bc5 {[%emt 0:01:53]} h5 {[%emt 0:02:50]} 25. Rc8 {[%emt 0:03:38]} Nb4 {[%emt 0:01:33]} 26. Rf8+ {[%emt 0:02:24]} Kg6 {[%emt 0:00:05]} 27. Bxb4 {[%emt 0:00:05]} Qxb2 {[%emt 0:00:10]} 28. Bc5 {[%emt 0:01:38]} b4 {[%emt 0:01:19]} 29. Rfe8 {[%emt 0:00:48]} h4 {[%emt 0:04:32]} 30. h3 {[%emt 0:02:21]} Qc3 {[%emt 0:04:07]} 31. R8e2 {[%emt 0:00:49]} Kh5 {[%emt 0:03:33]} 32. Rb1 {[%emt 0:00:38]} g5 {[%emt 0:00:57]} 33. Reb2 {[%emt 0:05:17]} g4 {[%emt 0:01:09]} 34. hxg4+ {[%emt 0:01:30]} Kxg4 {[%emt 0:00:07]} 35. Rxb4 {[%emt 0:00:47]} h3 {[%emt 0:03:57]} 36. R4b3 {[%emt 0:00:52]} Qc2 {[%emt 0:00:23]} 37. Ne1 {[%emt 0:05:47]} h2+ {[%emt 0:00:46]} 38. Kxh2 {[%emt 0:00:12]} Qxf2 {[%emt 0:00:08]} 39. Rf3 {[%emt 0:04:41]} Qe2 {[%emt 0:01:32]} 40. Rb8 {[%emt 0:02:47]} Qe6 {[%emt 0:02:00]} 41. Nd3 {[%emt 0:01:17]} Qf7 {[%emt 0:00:57]} 42. Nf2+ {[%emt 0:03:00]} Kg5 {[%emt 0:00:17]} 43. Nh3+ {[%emt 0:00:21]} Kg6 {[%emt 0:00:26]} 44. Nf4+ {[%emt 0:00:28]} Kg5 {[%emt 0:00:33]} 45. Rh8 {[%emt 0:01:02]} Ng7 {[%emt 0:03:38]} 46. Rh7 {[%emt 0:02:25]} Kg4 {[%emt 0:00:22]} 47. Rxg7+ {[%emt 0:00:13]} 1-0

[Event "26th Abu Dhabi Master 2019"]
[Site "Abu Dhabi"]
[Date "2019.08.03"]
[Round "2.61"]
[White "Soham Datar"]
[Black "Aronyak Ghosh"]
[Result "0-1"]
[ECO "A01"]
[WhiteElo "2129"]
[BlackElo "2349"]
[Annotator "NA"]
[PlyCount "66"]
[EventDate "2019.08.02"]
[EventType "swiss"]
[EventCountry "UAE"]
[SourceTitle "playchess.com"]
[Source "ChessBase"]
[SourceQuality "1"]
[TimeControl "5400+30"]

1. b3 {[%emt 0:01:27]} d5 {[%emt 0:00:00]} 2. Bb2 {[%emt 0:00:05]} Bg4 {[%emt 0:00:03]} 3. f3 {[%emt 0:00:39]} Bf5 {[%emt 0:00:06]} 4. e3 {[%emt 0:00:21]} Nf6 {[%emt 0:01:00]} 5. Ne2 {[%emt 0:00:05]} e6 {[%emt 0:02:19]} 6. Ng3 {[%emt 0:00:05]} Bg6 {[%emt 0:02:11]} 7. f4 {[%emt 0:00:05]} h5 {[%emt 0:01:42]} 8. f5 {[%emt 0:15:19]} Bxf5 {[%emt 0:08:24]} 9. Nxf5 {[%emt 0:00:06]} exf5 {[%emt 0:00:03]} 10. Qf3 {[%emt 0:00:35]} g6 {[%emt 0:01:27]} 11. Nc3 {[%emt 0:00:21]} c6 {[%emt 0:02:29]} 12. Bd3 {[%emt 0:14:25]} Nbd7 {[%emt 0:01:56]} 13. Ne2 {[%emt 0:01:19]} Bd6 {[%emt 0:01:39]} 14. O-O-O {[%emt 0:07:08]} Ne5 {[%emt 0:00:42]} 15. Qf1 {[%emt 0:06:45]} Qe7 {[%emt 0:01:07]} 16. Bxf5 {[%emt 0:01:06]} gxf5 {[%emt 0:02:32]} 17. Nd4 {[%emt 0:01:22]} Bc7 {[%emt 0:06:42]} 18. Nxf5 {[%emt 0:00:08]} Qf8 {[%emt 0:00:11]} 19. e4 {[%emt 0:08:32]} dxe4 {[%emt 0:03:09]} 20. d4 {[%emt 0:00:57]} Ned7 {[%emt 0:01:46]} 21. d5 {[%emt 0:00:07]} Nxd5 {[%emt 0:03:06]} 22. Ng7+ {[%emt 0:01:24]} Kd8 {[%emt 0:00:55]} 23. c4 {[%emt 0:01:50]} Nf4 {[%emt 0:03:03]} 24. Nf5 {[%emt 0:04:52]} Kc8 {[%emt 0:02:39]} 25. g3 {[%emt 0:00:33]} Nd3+ {[%emt 0:01:54]} 26. Rxd3 {[%emt 0:00:16]} exd3 {[%emt 0:00:02]} 27. Qxd3 {[%emt 0:00:17]} Ne5 {[%emt 0:02:48]} 28. Qe4 {[%emt 0:00:47]} f6 {[%emt 0:03:43]} 29. Rd1 {[%emt 0:01:57]} a5 {[%emt 0:01:58]} 30. Nd4 {[%emt 0:00:21]} a4 {[%emt 0:00:33]} 31. Qf5+ {[%emt 0:01:13]} Kb8 {[%emt 0:00:06]} 32. Ne6 {[%emt 0:00:11]} Qh6+ {[%emt 0:01:42]} 33. Kb1 {[%emt 0:00:17]} Qh7 {[%emt 0:01:01]} 0-1

[Event "26th Abu Dhabi Master 2019"]
[Site "Abu Dhabi"]
[Date "2019.08.03"]
[Round "2.62"]
[White "Kathmale, Sameer"]
[Black "Krzywda, Andrzej"]
[Result "1-0"]
[ECO "D60"]
[WhiteElo "2326"]
[BlackElo "2190"]
[Annotator "NA"]
[PlyCount "97"]
[EventDate "2019.08.02"]
[EventType "swiss"]
[EventCountry "UAE"]
[SourceTitle "playchess.com"]
[Source "ChessBase"]
[SourceQuality "1"]
[TimeControl "5400+30"]

1. d4 {[%emt 0:00:00]} Nf6 {[%emt 0:00:00]} 2. Nf3 {[%emt 0:00:00]} e6 {[%emt 0:01:39]} 3. Bg5 {[%emt 0:00:00]} d5 {[%emt 0:03:28]} 4. e3 {[%emt 0:00:07]} Be7 {[%emt 0:00:26]} 5. c4 {[%emt 0:02:32]} O-O {[%emt 0:02:41]} 6. Nc3 {[%emt 0:00:20]} Nbd7 {[%emt 0:01:41]} 7. cxd5 {[%emt 0:02:12]} exd5 {[%emt 0:05:26]} 8. Bd3 {[%emt 0:00:17]} c6 {[%emt 0:00:20]} 9. Qc2 {[%emt 0:00:44]} Re8 {[%emt 0:02:30]} 10. O-O {[%emt 0:00:28]} g6 {[%emt 0:05:59]} 11. a3 {[%emt 0:03:22]} a5 {[%emt 0:01:53]} 12. Na4 {[%emt 0:01:49]} Ne4 {[%emt 0:03:14]} 13. Bxe7 {[%emt 0:02:52]} Qxe7 {[%emt 0:00:21]} 14. Bxe4 {[%emt 0:00:11]} dxe4 {[%emt 0:00:47]} 15. Nd2 {[%emt 0:00:23]} Nf6 {[%emt 0:01:57]} 16. Nb6 {[%emt 0:08:16]} Ra6 {[%emt 0:05:13]} 17. Qc5 {[%emt 0:01:13]} Qc7 {[%emt 0:06:01]} 18. Ndc4 {[%emt 0:05:46]} Be6 {[%emt 0:04:30]} 19. b4 {[%emt 0:02:20]} axb4 {[%emt 0:19:27]} 20. axb4 {[%emt 0:02:52]} Rxa1 {[%emt 0:02:02]} 21. Rxa1 {[%emt 0:00:11]} Bxc4 {[%emt 0:04:27]} 22. Nxc4 {[%emt 0:00:06]} Rd8 {[%emt 0:04:05]} 23. b5 {[%emt 0:08:24]} Ng4 {[%emt 0:08:37]} 24. g3 {[%emt 0:00:56]} Qd7 {[%emt 0:02:54]} 25. bxc6 {[%emt 0:05:20]} bxc6 {[%emt 0:00:01]} 26. Ra7 {[%emt 0:05:02]} Qd5 {[%emt 0:01:37]} 27. h3 {[%emt 0:03:15]} Qxc5 {[%emt 0:01:25]} 28. dxc5 {[%emt 0:02:13]} Rd1+ {[%emt 0:00:02]} 29. Kg2 {[%emt 0:00:11]} Rc1 {[%emt 0:00:43]} 30. Nd6 {[%emt 0:03:52]} Ne5 {[%emt 0:00:20]} 31. g4 {[%emt 0:05:27]} Rxc5 {[%emt 0:05:00]} 32. g5 {[%emt 0:06:18]} Rc2 {[%emt 0:02:50]} 33. Nxe4 {[%emt 0:04:04]} Kg7 {[%emt 0:03:09]} 34. h4 {[%emt 0:03:16]} Ng4 {[%emt 0:01:33]} 35. Kg3 {[%emt 0:00:32]} h5 {[%emt 0:00:24]} 36. Rc7 {[%emt 0:08:16]} Rc1 {[%emt 0:00:02]} 37. Nd6 {[%emt 0:02:28]} Rg1+ {[%emt 0:00:57]} 38. Kf3 {[%emt 0:01:25]} Rf1 {[%emt 0:00:34]} 39. Rxf7+ {[%emt 0:01:12]} Kg8 {[%emt 0:00:02]} 40. Ke2 {[%emt 0:00:59]} Rh1 {[%emt 0:00:45]} 41. Re7 {[%emt 0:03:58]} Rxh4 {[%emt 0:00:40]} 42. f3 {[%emt 0:00:05]} Rh2+ {[%emt 0:00:36]} 43. Kd3 {[%emt 0:00:19]} Nf2+ {[%emt 0:00:29]} 44. Kd4 {[%emt 0:00:06]} Nd1 {[%emt 0:00:35]} 45. Ne4 {[%emt 0:01:16]} h4 {[%emt 0:00:29]} 46. Ke5 {[%emt 0:00:49]} Nxe3 {[%emt 0:00:24]} 47. Nf6+ {[%emt 0:00:12]} Kf8 {[%emt 0:00:07]} 48. Ke6 {[%emt 0:00:11]} Re2 {[%emt 0:00:59]} 49. Rf7# {[%emt 0:00:06]} 1-0

[Event "26th Abu Dhabi Master 2019"]
[Site "Abu Dhabi"]
[Date "2019.08.03"]
[Round "2.63"]
[White "Utsab Chatterjee"]
[Black "Krishnater Kushager"]
[Result "1-0"]
[ECO "B33"]
[WhiteElo "2150"]
[BlackElo "2324"]
[Annotator "NA"]
[PlyCount "107"]
[EventDate "2019.08.02"]
[EventType "swiss"]
[EventCountry "UAE"]
[SourceTitle "playchess.com"]
[Source "ChessBase"]
[SourceQuality "1"]
[TimeControl "5400+30"]

1. e4 c5 2. Nf3 Nc6 3. d4 cxd4 4. Nxd4 Nf6 5. Nc3 e5 6. Ndb5 d6 7. Bg5 a6 8. Na3 b5 9. Bxf6 gxf6 10. Nd5 f5 11. Bd3 Be6 12. c4 Bxd5 13. exd5 Ne7 14. cxb5 Bg7 15. bxa6 O-O 16. Qd2 e4 17. Bc4 Ng6 18. Rb1 f4 19. b4 Nh4 20. b5 Qg5 21. b6 Rae8 22. Kd1 Qxg2 23. Qxf4 e3 24. Qxh4 Qxh1+ 25. Kc2 Qf3 26. Bd3 h6 27. b7 e2 28. Qb4 Qxd5 29. Nc4 Qd4 30. a3 e1=N+ 31. Rxe1 Qxf2+ 32. Qd2 Qa7 33. Rxe8 Rxe8 34. Nxd6 Rd8 35. Qb4 Be5 36. Qg4+ Kf8 37. Qc8 Qf2+ 38. Kb3 Qb6+ 39. Nb5 Ke7 40. Qf5 Rd5 41. a4 Qe3 42. Kc4 Qc5+ 43. Kb3 Qe3 44. Kc4 Rc5+ 45. Kb3 Qd2 46. Qxe5+ Rxe5 47. b8=Q Qxd3+ 48. Nc3 Re1 49. Qb4+ Kd8 50. Qh4+ Re7 51. a7 Qa6 52. Qd4+ Kc8 53. Qh8+ Kb7 54. Qb8+ 1-0

[Event "26th Abu Dhabi Master 2019"]
[Site "Abu Dhabi"]
[Date "2019.08.03"]
[Round "2.64"]
[White "Zhang, Xiaowen"]
[Black "Arjun C Krishnamachari"]
[Result "1/2-1/2"]
[ECO "C62"]
[WhiteElo "2318"]
[BlackElo "2212"]
[Annotator "NA"]
[PlyCount "34"]
[EventDate "2019.08.02"]
[EventType "swiss"]
[EventCountry "UAE"]
[SourceTitle "playchess.com"]
[Source "ChessBase"]
[SourceQuality "1"]
[TimeControl "5400+30"]

1. e4 e5 2. Nf3 Nc6 3. Bb5 d6 4. d4 exd4 5. Nxd4 Bd7 6. Nc3 Nf6 7. Bxc6 Bxc6 8. Nxc6 bxc6 9. Qd4 Be7 10. O-O O-O 11. Qc4 c5 12. Bg5 Rb8 13. b3 Re8 14. f3 Qc8 15. a3 Qe6 16. Qd3 Qe5 17. Be3 c6 1/2-1/2

[Event "26th Abu Dhabi Master 2019"]
[Site "Abu Dhabi"]
[Date "2019.08.03"]
[Round "2.65"]
[White "Chitlange Sakshi"]
[Black "Pranav, V."]
[Result "0-1"]
[ECO "A45"]
[WhiteElo "2168"]
[BlackElo "2316"]
[Annotator "NA"]
[PlyCount "178"]
[EventDate "2019.08.02"]
[EventType "swiss"]
[EventCountry "UAE"]
[SourceTitle "playchess.com"]
[Source "ChessBase"]
[SourceQuality "1"]
[TimeControl "5400+30"]

1. d4 {[%emt 0:00:00]} Nf6 {[%emt 0:00:00]} 2. Bf4 {[%emt 0:00:00]} c5 {[%emt 0:00:09]} 3. d5 {[%emt 0:01:44]} b5 {[%emt 0:00:26]} 4. c4 {[%emt 0:02:04]} Bb7 {[%emt 0:02:09]} 5. e4 {[%emt 0:03:50]} Nxe4 {[%emt 0:01:59]} 6. cxb5 {[%emt 0:00:14]} e6 {[%emt 0:02:04]} 7. dxe6 {[%emt 0:01:32]} fxe6 {[%emt 0:02:49]} 8. Nf3 {[%emt 0:05:00]} Be7 {[%emt 0:05:09]} 9. Be2 {[%emt 0:02:35]} O-O {[%emt 0:00:41]} 10. Be3 {[%emt 0:02:00]} d5 {[%emt 0:03:52]} 11. O-O {[%emt 0:00:18]} Bd6 {[%emt 0:04:37]} 12. Nbd2 {[%emt 0:07:44]} Nf6 {[%emt 0:05:19]} 13. Bg5 {[%emt 0:00:12]} Nbd7 {[%emt 0:01:19]} 14. Bh4 {[%emt 0:04:09]} Qc7 {[%emt 0:02:43]} 15. Qc2 {[%emt 0:01:08]} Rae8 {[%emt 0:01:49]} 16. Rad1 {[%emt 0:04:37]} e5 {[%emt 0:04:16]} 17. Bg3 {[%emt 0:00:38]} e4 {[%emt 0:01:51]} 18. Bxd6 {[%emt 0:04:54]} Qxd6 {[%emt 0:00:09]} 19. Ne1 {[%emt 0:00:23]} d4 {[%emt 0:01:37]} 20. Nc4 {[%emt 0:05:05]} Qc7 {[%emt 0:01:11]} 21. f3 {[%emt 0:00:33]} d3 {[%emt 0:01:05]} 22. Nxd3 {[%emt 0:00:06]} exd3 {[%emt 0:00:09]} 23. Bxd3 {[%emt 0:00:16]} Kh8 {[%emt 0:01:56]} 24. Bf5 {[%emt 0:04:38]} Re7 {[%emt 0:00:38]} 25. Rfe1 {[%emt 0:01:08]} Nb6 {[%emt 0:04:06]} 26. Na5 {[%emt 0:02:26]} Ba8 {[%emt 0:00:34]} 27. Nc6 {[%emt 0:01:38]} Rxe1+ {[%emt 0:05:15]} 28. Rxe1 {[%emt 0:00:01]} c4 {[%emt 0:01:39]} 29. Ne5 {[%emt 0:05:30]} Re8 {[%emt 0:06:59]} 30. f4 {[%emt 0:01:12]} Nbd5 {[%emt 0:04:47]} 31. Bxh7 {[%emt 0:06:26]} Nxf4 {[%emt 0:00:41]} 32. Ng6+ {[%emt 0:02:21]} Nxg6 {[%emt 0:00:19]} 33. Rxe8+ {[%emt 0:00:04]} Kxh7 {[%emt 0:04:42]} 34. Rxa8 {[%emt 0:01:53]} Ng4 {[%emt 0:00:05]} 35. g3 {[%emt 0:04:20]} Qc5+ {[%emt 0:06:02]} 36. Kh1 {[%emt 0:00:05]} Qd5+ {[%emt 0:04:32]} 37. Qg2 {[%emt 0:00:08]} Qd1+ {[%emt 0:00:08]} 38. Qg1 {[%emt 0:00:04]} Nf2+ {[%emt 0:01:59]} 39. Kg2 {[%emt 0:00:01]} Qd5+ {[%emt 0:00:07]} 40. Kxf2 {[%emt 0:00:10]} Qxa8 {[%emt 0:00:01]} 41. Qd1 {[%emt 0:04:56]} Qf8+ {[%emt 0:00:22]} 42. Kg2 {[%emt 0:00:42]} Qf5 {[%emt 0:00:11]} 43. a4 {[%emt 0:03:23]} Ne5 {[%emt 0:01:27]} 44. Qe2 {[%emt 0:02:11]} Nd3 {[%emt 0:00:45]} 45. h4 {[%emt 0:01:45]} Qd5+ {[%emt 0:01:56]} 46. Kh2 {[%emt 0:00:19]} Kg6 {[%emt 0:01:14]} 47. Qe8+ {[%emt 0:01:27]} Kf5 {[%emt 0:01:53]} 48. Qf8+ {[%emt 0:01:39]} Kg6 {[%emt 0:02:03]} 49. Qe8+ {[%emt 0:00:02]} Kh7 {[%emt 0:00:06]} 50. Qe2 {[%emt 0:03:04]} Qf5 {[%emt 0:00:26]} 51. Kg2 {[%emt 0:02:19]} Qg6 {[%emt 0:03:59]} 52. Kh2 {[%emt 0:00:33]} Qf7 {[%emt 0:00:28]} 53. a5 {[%emt 0:03:13]} Qd5 {[%emt 0:00:38]} 54. b6 {[%emt 0:00:53]} axb6 {[%emt 0:01:45]} 55. axb6 {[%emt 0:00:01]} Nc5 {[%emt 0:00:08]} 56. Qe3 {[%emt 0:01:39]} Nd7 {[%emt 0:01:18]} 57. Qf2 {[%emt 0:01:13]} Ne5 {[%emt 0:01:46]} 58. Qf5+ {[%emt 0:02:32]} g6 {[%emt 0:00:01]} 59. Qf4 {[%emt 0:02:24]} Nf3+ {[%emt 0:03:50]} 60. Kh3 {[%emt 0:00:01]} Ne5 {[%emt 0:01:56]} 61. Kh2 {[%emt 0:00:09]} Kg8 {[%emt 0:00:56]} 62. b7 {[%emt 0:01:47]} Qb5 {[%emt 0:00:21]} 63. Kh3 {[%emt 0:01:12]} Qd7+ {[%emt 0:01:50]} 64. Kh2 {[%emt 0:00:07]} Qd6 {[%emt 0:00:12]} 65. Kh3 {[%emt 0:01:16]} Qd7+ {[%emt 0:01:21]} 66. Kh2 {[%emt 0:00:03]} Qb5 {[%emt 0:00:04]} 67. Kh3 {[%emt 0:00:08]} Nd7 {[%emt 0:00:24]} 68. Qc7 {[%emt 0:00:57]} Kf8 {[%emt 0:00:01]} 69. Qd6+ {[%emt 0:02:08]} Kf7 {[%emt 0:00:11]} 70. Qf4+ {[%emt 0:00:53]} Ke6 {[%emt 0:00:35]} 71. Qe4+ {[%emt 0:00:19]} Ne5 {[%emt 0:00:25]} 72. h5 {[%emt 0:00:34]} gxh5 {[%emt 0:00:25]} 73. Qh7 {[%emt 0:00:08]} Nd7 {[%emt 0:00:17]} 74. Qh6+ {[%emt 0:00:55]} Ke7 {[%emt 0:00:11]} 75. Qg7+ {[%emt 0:00:35]} Kd6 {[%emt 0:00:07]} 76. Qd4+ {[%emt 0:00:29]} Kc7 {[%emt 0:00:02]} 77. Qa7 {[%emt 0:00:40]} Nb8 {[%emt 0:01:19]} 78. Qd4 {[%emt 0:00:32]} Kxb7 {[%emt 0:00:23]} 79. g4 {[%emt 0:00:20]} hxg4+ {[%emt 0:00:09]} 80. Kxg4 {[%emt 0:00:01]} Qd7+ {[%emt 0:00:25]} 81. Qxd7+ {[%emt 0:00:16]} Nxd7 {[%emt 0:00:04]} 82. Kf3 {[%emt 0:00:54]} Kc6 {[%emt 0:00:03]} 83. Ke3 {[%emt 0:00:08]} Kc5 {[%emt 0:00:03]} 84. Kd2 {[%emt 0:00:27]} Kb4 {[%emt 0:00:04]} 85. Kc2 {[%emt 0:00:07]} Nc5 {[%emt 0:00:03]} 86. Kb1 {[%emt 0:00:37]} Kb3 {[%emt 0:00:06]} 87. Ka1 {[%emt 0:00:09]} Nd3 {[%emt 0:00:03]} 88. Kb1 {[%emt 0:00:02]} Nxb2 {[%emt 0:00:04]} 89. Kc1 {[%emt 0:00:05]} c3 {[%emt 0:00:04]} 0-1